{"text_format":"3","workbook":"xlsx","n_sheets":6,"sheets":["Журнал комерційних візитів","Контактна інформація клієнта","Підготовка до візиту","Перший візит","Дані про продажі","Після візиту"],"not_rendered":{"defined_names":13},"read":"whole","date_system":"1900"}

{"sheet":"Журнал комерційних візитів","index":0,"n_rows":13,"n_cols":7,"rows_kept":13}
[null," Назва компанії"]
[null,"Журнал комерційних візитів"]
[null,"Візит №","Клієнт","Компанія","Дата","Час","Нотатки"]
[null,1,"Кирило Паляниця",{"$f":"IF(ЖурналКомерційнихВізитів[[#This Row],[Клієнт]]=\"\",\"\",IFERROR(VLOOKUP(ЖурналКомерційнихВізитів[[#This Row],[Клієнт]],КонтактнаІнформаціяКлієнта[],2,0),\"Not Found\"))","v":"Proseware, Inc."},{"$f":"TODAY()-5","v":"2016-10-09"},"08:30:00"]
[null,2,"Денис Бондар",{"$f":"IF(ЖурналКомерційнихВізитів[[#This Row],[Клієнт]]=\"\",\"\",IFERROR(VLOOKUP(ЖурналКомерційнихВізитів[[#This Row],[Клієнт]],КонтактнаІнформаціяКлієнта[],2,0),\"Not Found\"))","v":"Litware, Inc."},{"$f":"TODAY()-5","v":"2016-10-09"},"09:00:00"]
[null,3,"Марина Шевченко",{"$f":"IF(ЖурналКомерційнихВізитів[[#This Row],[Клієнт]]=\"\",\"\",IFERROR(VLOOKUP(ЖурналКомерційнихВізитів[[#This Row],[Клієнт]],КонтактнаІнформаціяКлієнта[],2,0),\"Not Found\"))","v":"Northwind Traders"},"2016-10-09","09:30:00"]
[null,4,"Степан Ковалевський",{"$f":"IF(ЖурналКомерційнихВізитів[[#This Row],[Клієнт]]=\"\",\"\",IFERROR(VLOOKUP(ЖурналКомерційнихВізитів[[#This Row],[Клієнт]],КонтактнаІнформаціяКлієнта[],2,0),\"Not Found\"))","v":"Lucerne Publishing"},"2016-10-09","10:00:00"]
[null,5,"Андрій Панасенко",{"$f":"IF(ЖурналКомерційнихВізитів[[#This Row],[Клієнт]]=\"\",\"\",IFERROR(VLOOKUP(ЖурналКомерційнихВізитів[[#This Row],[Клієнт]],КонтактнаІнформаціяКлієнта[],2,0),\"Not Found\"))","v":"Margie’s Travel"},"2016-10-09","10:30:00"]
[null,6,"Кирило Паляниця",{"$f":"IF(ЖурналКомерційнихВізитів[[#This Row],[Клієнт]]=\"\",\"\",IFERROR(VLOOKUP(ЖурналКомерційнихВізитів[[#This Row],[Клієнт]],КонтактнаІнформаціяКлієнта[],2,0),\"Not Found\"))","v":"Proseware, Inc."},{"$f":"TODAY()-3","v":"2016-10-11"},"11:00:00"]
[null,7,"Денис Бондар",{"$f":"IF(ЖурналКомерційнихВізитів[[#This Row],[Клієнт]]=\"\",\"\",IFERROR(VLOOKUP(ЖурналКомерційнихВізитів[[#This Row],[Клієнт]],КонтактнаІнформаціяКлієнта[],2,0),\"Not Found\"))","v":"Litware, Inc."},{"$f":"TODAY()-3","v":"2016-10-11"},"11:30:00"]
[null,8,"Кирило Паляниця",{"$f":"IF(ЖурналКомерційнихВізитів[[#This Row],[Клієнт]]=\"\",\"\",IFERROR(VLOOKUP(ЖурналКомерційнихВізитів[[#This Row],[Клієнт]],КонтактнаІнформаціяКлієнта[],2,0),\"Not Found\"))","v":"Proseware, Inc."},{"$f":"TODAY()-1","v":"2016-10-13"},"12:00:00"]
[null,9,"Андрій Панасенко",{"$f":"IF(ЖурналКомерційнихВізитів[[#This Row],[Клієнт]]=\"\",\"\",IFERROR(VLOOKUP(ЖурналКомерційнихВізитів[[#This Row],[Клієнт]],КонтактнаІнформаціяКлієнта[],2,0),\"Not Found\"))","v":"Margie’s Travel"},{"$f":"TODAY()-1","v":"2016-10-13"},"12:30:00"]
[null,10,"Андрій Панасенко",{"$f":"IF(ЖурналКомерційнихВізитів[[#This Row],[Клієнт]]=\"\",\"\",IFERROR(VLOOKUP(ЖурналКомерційнихВізитів[[#This Row],[Клієнт]],КонтактнаІнформаціяКлієнта[],2,0),\"Not Found\"))","v":"Margie’s Travel"},{"$f":"TODAY()","v":"2016-10-14"},"13:00:00"]

{"sheet":"Контактна інформація клієнта","index":1,"n_rows":8,"n_cols":8,"rows_kept":8}
[null,{"$f":"НазваКомпанії","v":" Назва компанії"}]
[null,"Контактна інформація клієнта"]
[null,"Ім’я клієнта","Назва компанії","Адреса","Місто, область, поштовий індекс","Основний номер телефону","Додатковий номер телефону","Електронна пошта"]
[null,"Денис Бондар","Litware, Inc.","вул. Каштанова, 10","Дрогобич, Львівська обл. 12345","(541) 55-50-13","(541) 55-50-14","bondar@litwareinc.com"]
[null,"Степан Ковалевський","Lucerne Publishing","вул. Дубова, 5","Пирятин, Полтавська обл. 23456","(425) 55-50-19","(425) 55-50-20","kovalevskyi@lucernepublishing.com"]
[null,"Андрій Панасенко","Margie’s Travel","вул. Апельсинова, 9","Ніжин, Чернігівська обл. 34567","(888) 55-50-12","(888) 55-50-13","panasenko@margiestravel.com"]
[null,"Марина Шевченко","Northwind Traders","вул. Липова, 8","Гуляйполе, Запорізька обл. 45678","(541) 55-50-17","(541) 55-50-18","shevchenko@northwindtraders.com"]
[null,"Кирило Паляниця","Proseware, Inc.","вул. Вишнева, 1","Нововолинськ, Волинська обл. 56789","(509) 55-50-15","(509) 55-50-16","palianytsia@proseware.com"]

{"sheet":"Підготовка до візиту","index":2,"n_rows":13,"n_cols":3,"rows_kept":13}
[null,{"$f":"НазваКомпанії","v":" Назва компанії"}]
[null,"Контрольний список комерційних візитів"]
[null,"Прапорець","Підготовка до візиту"]
[null,null,"Перегляд історії клієнта"]
[null,null,"Перегляд історії роботодавця клієнта"]
[null,null,"Перегляд пріоритетів і стратегії продажів"]
[null,null,"Додайте елемент"]
[null,null,"Додайте елемент"]
[null,null,"Додайте елемент"]
[null,null,"Додайте елемент"]
[null,null,"Додайте елемент"]
[null,null,"Додайте елемент"]
[null,null,"Додайте елемент"]

{"sheet":"Перший візит","index":3,"n_rows":13,"n_cols":3,"rows_kept":13}
[null,{"$f":"НазваКомпанії","v":" Назва компанії"}]
[null,"Контрольний список комерційних візитів"]
[null,"Прапорець","Перший візит"]
[null,null,"Безпосереднє звертання до відповідного працівника"]
[null,null,"Чітке представлення"]
[null,null,"Додайте елемент"]
[null,null,"Додайте елемент"]
[null,null,"Додайте елемент"]
[null,null,"Додайте елемент"]
[null,null,"Додайте елемент"]
[null,null,"Додайте елемент"]
[null,null,"Додайте елемент"]
[null,null,"Додайте елемент"]

{"sheet":"Дані про продажі","index":4,"n_rows":13,"n_cols":3,"rows_kept":13}
[null,{"$f":"НазваКомпанії","v":" Назва компанії"}]
[null,"Контрольний список комерційних візитів"]
[null,"Прапорець","Дані про продажі"]
[null,null,"Чітке й переконливе представлення продукту або послуги"]
[null,null,"Надання основних відомостей"]
[null,null,"Згадка про присутність в Інтернеті (наприклад, наявність веб-сайту, сторінок у соціальних мережах)"]
[null,null,"Додайте елемент"]
[null,null,"Додайте елемент"]
[null,null,"Додайте елемент"]
[null,null,"Додайте елемент"]
[null,null,"Додайте елемент"]
[null,null,"Додайте елемент"]
[null,null,"Додайте елемент"]

{"sheet":"Після візиту","index":5,"n_rows":13,"n_cols":3,"rows_kept":13}
[null,{"$f":"НазваКомпанії","v":" Назва компанії"}]
[null,"Контрольний список комерційних візитів"]
[null,"Прапорець","Відомості після візиту"]
[null,null,"Контактна інформація клієнта"]
[null,null,"Особисті дані клієнта"]
[null,null,"Уподобання клієнта"]
[null,null,"Візит до цього клієнта перенесено?"]
[null,null,"Продаж здійснено?"]
[null,null,"Додайте елемент"]
[null,null,"Додайте елемент"]
[null,null,"Додайте елемент"]
[null,null,"Додайте елемент"]
[null,null,"Додайте елемент"]